bitfinex-derivatives/quotes_BTCF0:USTF0_20240815
["timestamp","ask_amount","ask_price","bid_price","bid_amount"]
[1723725980231,0.224251,59343.0,59342.0,0.00300001]
[1723725980436,0.234251,59343.0,59342.0,0.00100001]
[1723725980625,0.234251,59343.0,59342.0,0.01000001]
[1723725980826,0.224251,59343.0,59342.0,0.01000001]
[1723725981126,0.554251,59343.0,59342.0,0.00100001]
[1723725981437,1.059771,59343.0,59342.0,0.00886386]
[1723725981621,1.37552,59343.0,59333.0,0.3608]
[1723725981824,0.2921,59334.0,59325.0,0.3608]
[1723725982129,0.2921,59326.0,59325.0,0.3608]
[1723725982331,0.4521,59326.0,59325.0,0.3608]
[1723725982828,0.20345149,59333.0,59325.0,0.3608]
[1723725982829,0.00025287,59331.0,59325.0,0.3608]
[1723725983029,0.00025287,59331.0,59330.0,0.44507]
[1723725983247,0.00025287,59331.0,59330.0,1.35071]
[1723725984027,0.084248,59346.0,59330.0,1.35071]
[1723725984028,0.24994768,59347.0,59330.0,0.3608]
[1723725984221,0.71994768,59347.0,59346.0,0.3608]
[1723725984656,0.80419368,59347.0,59346.0,0.3608]
[1723725984938,0.80419368,59347.0,59340.0,0.3608]
[1723725984939,0.08425,59344.0,59340.0,0.3608]
[1723725985233,0.376354,59341.0,59340.0,0.3608]
[1723725985533,0.946354,59341.0,59340.0,0.3608]
[1723725985731,0.946354,59341.0,59334.0,0.3608]
[1723725985732,1.36766,59341.0,59334.0,0.3608]
[1723725985936,0.2921,59335.0,59334.0,0.3608]
[1723725986240,0.15,59335.0,59334.0,0.3608]
[1723725986429,0.424263,59335.0,59334.0,0.3608]
[1723725986830,0.424263,59335.0,59328.0,0.3608]
[1723725986831,1.329863,59335.0,59328.0,0.3608]
[1723725987127,1.329863,59335.0,59329.0,0.00025287]
[1723725987128,0.08427,59330.0,59329.0,0.00025287]
[1723725987334,0.61427,59330.0,59329.0,0.00025287]
[1723725987641,1.11991,59330.0,59329.0,0.00025287]
[1723725987941,1.82368,59330.0,59329.0,0.00025287]
[1723725988643,0.168542,59329.0,59328.0,0.3608]
[1723725988937,1.244182,59329.0,59328.0,0.3608]
[1723725989139,1.644182,59329.0,59328.0,0.3608]
[1723725989364,0.6,59335.0,59329.0,0.168542]
[1723725989645,0.3608,59359.0,59334.0,0.3608]
[1723725989646,0.2921,59354.0,59334.0,0.3608]
[1723725989829,0.6521,59354.0,59347.0,0.3608]
[1723725990031,0.536337,59354.0,59347.0,0.3608]
[1723725990338,0.084238,59353.0,59347.0,0.3608]
[1723725990532,0.234238,59353.0,59347.0,0.3608]
[1723725990726,0.376344,59348.0,59345.0,0.00025287]
[1723725990930,0.084247,59346.0,59345.0,0.00025287]
[1723725991131,0.384247,59346.0,59345.0,0.00025287]
[1723725992330,0.384247,59346.0,59345.0,0.00625287]
[1723725992639,0.264247,59346.0,59345.0,0.00825287]
[1723725992853,0.264247,59346.0,59345.0,0.00225287]
[1723725993029,0.264247,59346.0,59345.0,0.00625287]
[1723725993228,0.264247,59346.0,59345.0,0.00425287]
[1723725993432,0.264247,59346.0,59345.0,0.00725287]
[1723725994841,0.16,59346.0,59345.0,0.00725287]
[1723725995139,0.16,59346.0,59345.0,0.00425287]
[1723725995140,0.10098643,59346.0,59345.0,0.00425287]
[1723725995436,0.10098643,59346.0,59345.0,0.00825287]
[1723725995942,0.10098643,59346.0,59345.0,0.00425287]
[1723725996143,0.10098643,59346.0,59345.0,0.00225287]
[1723725996561,0.2921,59349.0,59345.0,0.00225287]
[1723725996843,0.02,59349.0,59348.0,0.084244]
[1723725997043,0.2921,59354.0,59351.0,0.084239]
[1723725997251,0.23,59354.0,59353.0,0.445037]
[1723725997543,0.00025287,59356.0,59355.0,0.084234]
[1723725998134,0.00025287,59356.0,59355.0,0.445034]
[1723725998435,0.00025287,59356.0,59355.0,0.57339151]
[1723725998944,0.30067556,59370.0,59355.0,0.57339151]
[1723725998945,0.2921,59388.0,59357.0,0.084231]
[1723725999144,0.2921,59377.0,59375.0,0.3608]
[1723725999346,0.168408,59376.0,59375.0,0.3608]
[1723725999540,0.374204,59376.0,59375.0,0.3608]
[1723726000242,0.252633,59371.0,59370.0,0.36105266]
[1723726000443,0.08422,59365.0,59364.0,0.34987984]
[1723726000645,0.08423,59358.0,59354.0,0.3608]
[1723726000857,0.2226,59364.0,59354.0,0.3608]
[1723726001148,0.084234,59355.0,59354.0,0.3608]
[1723726001338,0.234234,59355.0,59354.0,0.3608]
[1723726001940,0.084234,59355.0,59354.0,0.3608]
[1723726002548,0.00025266,59360.0,59354.0,1.26624]
[1723726002747,0.00025266,59360.0,59359.0,0.445028]
[1723726002950,0.00025266,59360.0,59359.0,0.3608]
[1723726003637,0.00025266,59360.0,59359.0,0.445028]
[1723726004051,0.00125266,59360.0,59359.0,0.3728]
[1723726004637,0.08547966,59360.0,59359.0,0.3728]
[1723726004842,0.00125266,59360.0,59359.0,0.3728]
[1723726005045,0.00125266,59360.0,59359.0,0.457028]
[1723726005238,0.00125266,59360.0,59359.0,0.962428]
[1723726005738,0.00125266,59360.0,59359.0,0.457028]
[1723726005945,0.00125266,59360.0,59359.0,0.463028]
[1723726006147,0.00125266,59360.0,59359.0,0.59137217]
[1723726006447,0.00125266,59360.0,59359.0,0.50614417]
[1723726006448,0.32970666,59360.0,59359.0,0.50614417]
[1723726006646,0.84180666,59360.0,59359.0,0.58817056]
[1723726006841,0.16125266,59360.0,59359.0,0.3788]
[1723726007045,0.24547966,59360.0,59359.0,0.3798]
[1723726007353,0.63180666,59360.0,59359.0,0.36154312]
[1723726007653,0.38657966,59360.0,59359.0,0.34954312]
[1723726007854,0.38657966,59360.0,59359.0,0.36354312]
[1723726007855,0.22547966,59360.0,59359.0,0.36354312]
[1723726008252,0.23547966,59360.0,59359.0,0.36354312]
[1723726008460,0.23547966,59360.0,59359.0,0.36154312]
[1723726008461,0.22547966,59360.0,59359.0,0.36154312]
[1723726009456,0.61080666,59360.0,59359.0,0.34854312]
[1723726009755,0.52657966,59360.0,59359.0,0.35854312]
[1723726010152,0.61080666,59360.0,59359.0,0.35854312]
[1723726010346,0.168472,59354.0,59353.0,0.08102618]
[1723726010547,1.28553802,59354.0,59349.0,0.00025266]
[1723726010753,0.168482,59350.0,59349.0,0.00025266]
[1723726011052,0.588482,59350.0,59349.0,0.00025266]
[1723726011257,1.578203,59350.0,59349.0,0.00025266]
[1723726011447,1.493962,59350.0,59349.0,0.00025266]
[1723726011643,1.093962,59350.0,59349.0,0.00025266]
[1723726011858,0.504241,59350.0,59349.0,0.00025266]
[1723726012260,0.588482,59350.0,59349.0,0.00025266]
[1723726012451,1.578203,59350.0,59349.0,6.6e-07]
[1723726012954,1.578203,59350.0,59349.0,0.00100066]
[1723726013355,0.588482,59350.0,59349.0,0.00100066]
[1723726013550,1.579203,59350.0,59349.0,0.00800066]
[1723726013755,0.084257,59339.0,59333.0,0.09840186]
[1723726014056,0.084263,59335.0,59334.0,0.12840886]
[1723726014260,0.2921,59344.0,59334.0,0.12840886]
[1723726014556,0.2921,59344.0,59337.0,0.3608]
[1723726014557,0.168517,59338.0,59337.0,0.3608]
[1723726014762,0.224258,59338.0,59337.0,0.48920802]
[1723726015061,0.224258,59338.0,59337.0,0.3608]
[1723726015256,0.308516,59338.0,59337.0,0.3608]
[1723726015445,0.084264,59334.0,59333.0,0.007]
[1723726015651,0.610628,59334.0,59333.0,0.007]
[1723726015847,0.730628,59334.0,59333.0,0.007]
[1723726016049,0.16853,59333.0,59332.0,0.00025266]
[1723726016354,0.16853,59333.0,59332.0,0.04956186]
[1723726016355,1.268435,59333.0,59332.0,0.04956186]
[1723726016552,1.668435,59333.0,59332.0,0.00025266]
[1723726016750,0.34,59333.0,59332.0,0.36105266]
[1723726016959,0.34,59333.0,59332.0,0.48947457]
[1723726017147,0.084264,59335.0,59332.0,0.48947457]
[1723726017354,0.084264,59335.0,59332.0,0.36105266]
[1723726017548,0.00628942,59342.0,59333.0,0.12841381]
[1723726017849,0.00025266,59343.0,59338.0,0.3608]
[1723726018255,0.084254,59341.0,59339.0,0.12839791]
[1723726018452,0.084254,59341.0,59338.0,0.3608]
[1723726018453,0.00025266,59343.0,59338.0,0.7216]
[1723726018657,0.16025266,59343.0,59339.0,0.12839633]
[1723726018960,0.16025266,59343.0,59340.0,0.12839633]
[1723726018961,0.00025266,59343.0,59340.0,0.12839633]
[1723726019152,0.00025266,59343.0,59341.0,0.12839633]
[1723726019352,0.24450466,59343.0,59338.0,0.7216]
[1723726019660,0.084257,59339.0,59338.0,0.3608]
[1723726019862,0.224257,59339.0,59338.0,0.3608]
[1723726020053,0.308514,59339.0,59338.0,0.3608]
[1723726020247,0.224257,59339.0,59338.0,0.3608]
[1723726020452,0.584257,59339.0,59338.0,0.3608]
[1723726020754,0.668514,59339.0,59338.0,0.3608]
[1723726021157,0.669514,59339.0,59338.0,0.3608]
[1723726021361,0.585257,59339.0,59338.0,0.3608]
[1723726021768,0.501,59339.0,59338.0,0.3608]
[1723726022258,0.361,59339.0,59338.0,0.3608]
[1723726022463,0.605257,59339.0,59338.0,0.3608]
[1723726022662,0.521,59339.0,59338.0,0.3608]
[1723726022850,0.521,59339.0,59338.0,0.3618]
[1723726023058,0.361,59339.0,59338.0,0.446058]
[1723726023252,0.361,59339.0,59338.0,0.57445727]
[1723726023253,0.36,59339.0,59338.0,0.57445727]
[1723726023456,0.36,59339.0,59338.0,0.5774531]
[1723726023660,0.3608,59363.0,59342.0,0.084253]
[1723726023855,0.084234,59355.0,59354.0,0.04929966]
[1723726024057,0.084237,59353.0,59352.0,0.3608]
[1723726024256,0.104237,59353.0,59352.0,0.3608]
[1723726024457,0.02,59353.0,59352.0,0.3608]
[1723726025170,0.084237,59353.0,59352.0,0.3608]
[1723726025466,0.442711,59353.0,59352.0,0.4100994]
[1723726025654,0.443711,59353.0,59352.0,0.008]
[1723726025856,0.275237,59353.0,59352.0,0.008]
[1723726026162,0.359474,59353.0,59352.0,0.008]
[1723726026663,0.276237,59353.0,59352.0,0.011]
[1723726026965,0.370474,59353.0,59352.0,0.011]
[1723726027170,0.286237,59353.0,59352.0,0.011]
[1723726027662,0.286237,59353.0,59348.0,0.3608]
[1723726027663,0.084243,59349.0,59348.0,0.3608]
[1723726027864,0.19,59349.0,59348.0,0.3608]
[1723726028368,0.04,59349.0,59348.0,0.3608]
[1723726028662,0.002,64636.0,59349.0,0.084243]
[1723726028663,0.00025266,59358.0,59349.0,0.084243]
[1723726028965,1e-08,59358.0,59357.0,0.445031]
[1723726029155,0.084222,59364.0,59357.0,0.445031]
[1723726029363,0.084222,59364.0,59363.0,0.3608]
[1723726030658,0.00847082,59386.0,59363.0,1.36400565]
[1723726030860,0.14,59383.0,59379.0,0.3608]
[1723726031054,0.084199,59380.0,59379.0,0.3608]
[1723726031463,0.06337082,59386.0,59379.0,0.3608]
[1723726031668,0.4349,59386.0,59379.0,0.3608]
[1723726031967,0.084199,59380.0,59379.0,0.3608]
[1723726032964,0.17,59380.0,59374.0,0.36105266]
[1723726033170,0.084194,59384.0,59379.0,0.3608]
[1723726033359,0.39,59384.0,59379.0,0.3608]
[1723726033667,0.084198,59381.0,59374.0,0.36105266]
[1723726033858,0.084203,59377.0,59374.0,0.36105266]
[1723726034659,0.084199,59380.0,59374.0,0.36105266]
[1723726034858,0.15,59380.0,59374.0,0.36105266]
[1723726035064,0.009,59377.0,59374.0,0.36205266]
[1723726035560,0.084204,59376.0,59374.0,0.36205266]
[1723726035763,0.009,59377.0,59374.0,0.36205266]
[1723726035970,0.009,59377.0,59374.0,0.00125266]
[1723726035971,0.084206,59375.0,59374.0,0.00125266]
[1723726036159,0.084217,59367.0,59366.0,0.3608]
[1723726036364,0.084217,59367.0,59365.0,0.3608]
[1723726036365,0.084219,59366.0,59365.0,0.3608]
[1723726036557,0.254219,59366.0,59365.0,0.3608]
[1723726036762,0.338438,59366.0,59365.0,0.3608]
[1723726037161,0.084228,59359.0,59358.0,0.3608]
[1723726037365,0.084228,59359.0,59353.0,0.3608]
[1723726037366,0.17,59359.0,59353.0,0.3608]
[1723726037761,0.17,59359.0,59358.0,0.3608]
[1723726038366,0.08446566,59371.0,59358.0,0.3668]
[1723726038666,0.084218,59367.0,59364.0,0.3608]
[1723726039069,0.15,59367.0,59364.0,0.3608]
[1723726039270,0.08422,59365.0,59364.0,0.3608]
[1723726039472,0.16,59365.0,59364.0,0.3608]
[1723726039662,0.084213,59370.0,59364.0,0.3608]
[1723726039868,0.084213,59370.0,59369.0,0.3608]
[1723726039869,0.17,59370.0,59369.0,0.3608]
[1723726040778,0.14,59370.0,59369.0,0.3608]
[1723726040984,0.224213,59370.0,59369.0,0.3608]
[1723726041479,0.227213,59370.0,59369.0,0.3608]
[1723726042067,0.143,59370.0,59369.0,0.3608]
[1723726042464,0.143,59370.0,59364.0,0.445021]
[1723726042465,0.238213,59370.0,59364.0,0.3608]
[1723726042675,0.084214,59369.0,59364.0,0.3608]
[1723726042869,0.084216,59368.0,59364.0,0.7216]
[1723726043069,0.254216,59368.0,59364.0,0.7216]
[1723726043465,0.084219,59366.0,59364.0,0.7216]
[1723726043676,0.08422,59365.0,59364.0,0.7216]
[1723726043976,0.35844,59365.0,59364.0,0.7216]
[1723726044164,0.35844,59365.0,59364.0,0.3638]
[1723726044570,0.44266,59365.0,59364.0,0.3638]
[1723726044865,0.35844,59365.0,59364.0,0.003]
[1723726045073,0.44266,59365.0,59364.0,0.003]
[1723726045469,0.084234,59355.0,59353.0,0.36105266]
[1723726045670,0.084236,59354.0,59353.0,0.36105266]
[1723726045879,0.15,59354.0,59353.0,0.36105266]
[1723726046777,0.084205,59376.0,59353.0,1.35072966]
[1723726046980,0.181,59365.0,59364.0,0.3608]
[1723726047382,0.18,59365.0,59364.0,0.3608]
[1723726047769,0.16,59365.0,59364.0,0.445021]
[1723726047969,0.16,59365.0,59364.0,0.3608]
[1723726048184,0.16,59365.0,59364.0,0.3638]
[1723726048775,0.16,59365.0,59364.0,0.448021]
[1723726049480,0.16,59365.0,59364.0,0.808821]
[1723726049783,0.084208,59374.0,59370.0,0.084213]
[1723726050087,0.084191,59386.0,59370.0,0.445013]
[1723726050088,0.084205,59376.0,59370.0,0.445013]
[1723726050672,0.084206,59375.0,59370.0,0.445013]
[1723726050880,1e-08,59371.0,59370.0,1.434546]
[1723726051180,0.2228,59386.0,59378.0,0.084202]
[1723726051373,0.2228,59386.0,59378.0,0.3608]
[1723726051577,0.084193,59384.0,59378.0,0.445002]
[1723726052184,0.1391,59379.0,59378.0,0.3608]
[1723726053196,0.0549,59379.0,59378.0,0.445002]
[1723726053384,0.24898989,59387.0,59378.0,0.445002]
[1723726053385,0.33317989,59387.0,59382.0,0.084196]
[1723726053683,0.33317989,59387.0,59386.0,0.3608]
[1723726053895,0.24898989,59387.0,59386.0,0.3608]
[1723726054080,0.24898989,59387.0,59386.0,0.42641671]
[1723726054277,0.33317889,59387.0,59386.0,0.3608]
[1723726054886,0.50417889,59387.0,59386.0,0.3608]
[1723726055191,0.24998989,59387.0,59386.0,0.3608]
[1723726056377,0.33317889,59387.0,59386.0,0.3608]
[1723726056583,0.34317889,59387.0,59386.0,0.3608]
[1723726056788,0.60736789,59387.0,59386.0,0.3608]
[1723726056987,1.02833889,59387.0,59378.0,0.42641671]
[1723726057283,0.0842,59379.0,59378.0,0.3608]
[1723726057484,0.2342,59379.0,59378.0,0.3608]
[1723726058175,0.15,59379.0,59378.0,0.3608]
[1723726058581,0.084188,59388.0,59383.0,0.084194]
[1723726058781,0.25998989,59387.0,59386.0,0.3608]
[1723726058981,0.49417889,59387.0,59386.0,0.3608]
[1723726059186,0.57836789,59387.0,59386.0,0.3608]
[1723726059705,0.084194,59383.0,59382.0,0.06563772]
[1723726059885,0.084196,59382.0,59381.0,0.06563772]
[1723726060081,0.084196,59382.0,59378.0,0.43043772]
[1723726060082,0.0842,59379.0,59378.0,0.43043772]
[1723726060292,0.2642,59379.0,59378.0,0.42643772]
[1723726060585,0.2642,59379.0,59378.0,0.07063772]
[1723726060780,0.17,59379.0,59378.0,0.07063772]
[1723726061396,0.24898989,59387.0,59379.0,0.0842]
[1723726061692,0.60898989,59387.0,59383.0,0.3608]
[1723726061893,0.40898989,59387.0,59383.0,0.3608]
[1723726062489,0.084193,59384.0,59383.0,0.3608]
[1723726062692,0.24898989,59387.0,59383.0,0.3608]
[1723726062885,0.41898989,59387.0,59383.0,0.444994]
[1723726063085,0.41898989,59387.0,59383.0,0.3608]
[1723726063282,0.08419,59386.0,59383.0,0.3608]
[1723726063486,0.084192,59385.0,59383.0,0.3608]
[1723726063688,0.33317989,59387.0,59383.0,0.3538]
[1723726063889,0.40898989,59387.0,59383.0,0.3538]
[1723726064090,0.40898989,59387.0,59385.0,0.084191]
[1723726064384,0.24898989,59387.0,59386.0,0.08419]
[1723726064888,0.084192,59385.0,59383.0,0.439994]
[1723726065192,0.33417889,59387.0,59384.0,0.084193]
[1723726065599,0.08419,59386.0,59384.0,0.084193]
[1723726066092,0.084192,59385.0,59383.0,0.3558]
[1723726066300,0.084193,59384.0,59383.0,0.3558]
[1723726066490,0.084193,59384.0,59378.0,0.3608]
[1723726066491,0.0842,59379.0,59378.0,0.3608]
[1723726066692,0.2542,59379.0,59378.0,0.45862421]
[1723726066892,0.2642,59379.0,59378.0,0.3608]
[1723726067394,0.084207,59374.0,59369.0,0.3608]
[1723726067697,0.324207,59374.0,59369.0,0.3608]
[1723726067900,0.324207,59374.0,59370.0,0.084212]
[1723726068203,0.14,59374.0,59372.0,0.08421]
[1723726068399,0.14,59374.0,59373.0,0.08446166]
[1723726068793,0.001,59374.0,59373.0,0.08846166]
[1723726069194,0.001,59374.0,59373.0,0.99374166]
[1723726069501,0.001,59374.0,59373.0,0.69156873]
[1723726069701,0.001,59374.0,59373.0,0.59374166]
[1723726069895,0.001,59374.0,59373.0,0.69148877]
[1723726070298,0.084202,59378.0,59376.0,0.084204]
[1723726070597,0.084203,59377.0,59376.0,0.445004]
[1723726071003,0.084203,59377.0,59376.0,0.09782538]
[1723726071004,0.17,59377.0,59376.0,0.09782538]
[1723726071190,0.254203,59377.0,59376.0,0.09783084]
[1723726071700,0.244203,59377.0,59376.0,0.10083084]
[1723726071897,0.264203,59377.0,59376.0,0.10083084]
[1723726072198,0.18,59377.0,59376.0,0.10083084]
[1723726072391,0.084203,59377.0,59376.0,0.10083084]
[1723726072592,8.001e-05,59382.0,59376.0,1.36687084]
[1723726072793,0.08427601,59382.0,59381.0,0.3608]
[1723726072998,8.001e-05,59382.0,59381.0,0.45863084]
[1723726073500,8.001e-05,59382.0,59381.0,0.45861834]
[1723726073692,8.001e-05,59382.0,59381.0,0.52417401]
[1723726073693,0.17847201,59382.0,59381.0,0.52417401]
[1723726073895,0.25427601,59382.0,59378.0,0.06555567]
[1723726074101,0.25427601,59382.0,59376.0,0.06555567]
[1723726074102,0.084203,59377.0,59376.0,0.06555567]
[1723726074299,0.084203,59377.0,59373.0,0.00017266]
[1723726074300,0.084204,59376.0,59375.0,0.06555567]
[1723726074495,8.001e-05,59382.0,59375.0,0.54283852]
[1723726074709,0.53008001,59382.0,59381.0,0.001]
[1723726075097,0.61427601,59382.0,59381.0,0.001]
[1723726075300,0.53008001,59382.0,59379.0,0.06559904]
[1723726075603,0.16008001,59382.0,59381.0,0.06563441]
[1723726075809,0.16008001,59382.0,59381.0,0.09782405]
[1723726076102,8.001e-05,59382.0,59381.0,0.09782405]
[1723726076401,8.001e-05,59382.0,59381.0,0.3103173]
[1723726076900,8.001e-05,59382.0,59381.0,0.3113173]
[1723726077109,0.00108001,59382.0,59381.0,0.3113173]
[1723726077495,0.00108001,59382.0,59381.0,0.3103173]
[1723726078302,0.00108001,59382.0,59381.0,0.21249325]
[1723726078509,0.00108001,59382.0,59381.0,0.3103074]
[1723726078708,0.33317889,59387.0,59383.0,0.084194]
[1723726079011,0.50317889,59387.0,59386.0,0.08212608]
[1723726079202,0.50317889,59387.0,59386.0,0.08212788]
[1723726079402,0.50317889,59387.0,59386.0,0.12828806]
[1723726080111,0.59736789,59387.0,59386.0,0.2260952]
[1723726080296,0.001,59382.0,59381.0,0.004]
[1723726080498,0.001,59382.0,59381.0,0.23011569]
[1723726080694,0.001,59382.0,59381.0,0.81951292]
[1723726080903,0.001,59382.0,59381.0,1.58031292]
[1723726081100,0.001,59382.0,59381.0,1.57831292]
[1723726081297,0.24998989,59387.0,59381.0,1.33445528]
[1723726081506,0.69255689,59387.0,59386.0,0.44297674]
[1723726081816,0.60736789,59387.0,59386.0,0.3608]
[1723726082201,0.08419,59386.0,59382.0,0.08217674]
[1723726082501,0.08419,59386.0,59381.0,0.3628]
[1723726082502,0.084196,59382.0,59381.0,0.3628]
[1723726082804,0.084196,59382.0,59381.0,0.58892081]
[1723726083204,0.24898989,59387.0,59381.0,0.59092081]
[1723726083406,0.084192,59385.0,59384.0,0.08218404]
[1723726083595,0.254192,59385.0,59384.0,0.18000593]
[1723726083798,0.17,59385.0,59384.0,0.30830147]
[1723726084002,0.254192,59385.0,59384.0,0.30830071]
[1723726084202,0.254192,59385.0,59384.0,0.18000593]
[1723726084814,0.634992,59385.0,59381.0,0.002]
[1723726085008,0.084194,59383.0,59382.0,0.09782906]
[1723726085215,0.204194,59383.0,59382.0,0.09782906]
[1723726085411,0.3608,59385.0,59379.0,0.16638404]
[1723726085701,0.14,59385.0,59384.0,0.08219185]
[1723726086115,0.14,59385.0,59376.0,0.09859215]
[1723726086307,0.14,59385.0,59363.0,0.36736303]
[1723726086308,0.3608,59382.0,59377.0,0.21050071]
[1723726086619,0.3608,59382.0,59363.0,0.3608]
[1723726086620,1.266,59382.0,59379.0,0.06478841]
[1723726086820,1.266,59382.0,59363.0,0.3608]
[1723726086821,0.50524,59381.0,59369.0,0.07237252]
[1723726087117,0.50524,59381.0,59363.0,0.45939215]
[1723726087118,0.168434,59367.0,59366.0,0.07237252]
[1723726087414,0.084221,59364.0,59363.0,0.3608]
[1723726087614,0.264221,59364.0,59363.0,0.3608]
[1723726087913,0.264221,59364.0,59363.0,0.48913316]
[1723726088108,0.348442,59364.0,59363.0,0.48913316]
[1723726088305,0.264221,59364.0,59363.0,0.3608]
[1723726088506,0.348442,59364.0,59363.0,0.3608]
[1723726088715,0.349442,59364.0,59363.0,0.3628]
[1723726088914,0.710242,59364.0,59363.0,0.002]
[1723726089101,0.794463,59364.0,59363.0,0.002]
[1723726089305,0.794463,59364.0,59358.0,0.00025266]
[1723726089306,0.252684,59359.0,59358.0,0.00025266]
[1723726089504,0.358456,59359.0,59358.0,0.00025266]
[1723726089719,0.274228,59359.0,59358.0,0.00025266]
[1723726089906,0.489428,59359.0,59358.0,0.00025266]
[1723726090208,0.469428,59359.0,59358.0,0.00025266]
[1723726090601,0.92090884,59359.0,59358.0,0.01025266]
[1723726090803,0.83668084,59359.0,59358.0,0.01025266]
[1723726091006,0.92090884,59359.0,59358.0,0.01025266]
[1723726091212,0.92090884,59359.0,59358.0,0.01225266]
[1723726091213,0.92190884,59359.0,59358.0,0.01225266]
[1723726091624,0.084247,59346.0,59345.0,0.3608]
[1723726091810,0.094247,59346.0,59345.0,0.45867853]
[1723726092005,0.084247,59346.0,59345.0,0.45867853]
[1723726092221,0.234247,59346.0,59345.0,0.45867853]
[1723726092617,0.2162,59359.0,59345.0,0.96419853]
[1723726092918,0.084234,59356.0,59354.0,0.3608]
[1723726093123,0.084233,59356.0,59355.0,0.09787853]
[1723726094220,0.085233,59356.0,59355.0,0.09787853]
[1723726094917,0.001,59356.0,59355.0,0.18211253]
[1723726095122,0.001,59356.0,59355.0,0.68755253]
[1723726095318,0.235,59374.0,59355.0,0.68755253]
[1723726095319,0.4506,59383.0,59356.0,0.5054]
[1723726095625,0.3608,59378.0,59366.0,0.3608]
[1723726095810,0.084216,59368.0,59367.0,0.09783881]
[1723726096007,0.084217,59367.0,59366.0,0.3608]
[1723726096221,0.084219,59366.0,59360.0,0.3608]
[1723726096520,0.001,59356.0,59355.0,0.009]
[1723726096721,0.001,59356.0,59355.0,0.10685753]
[1723726096722,0.718133,59356.0,59355.0,0.10685753]
[1723726096906,0.718133,59356.0,59346.0,0.3608]
[1723726096907,0.084245,59347.0,59346.0,0.3608]
[1723726097107,0.16,59347.0,59340.0,0.3608]
[1723726097311,0.084253,59342.0,59341.0,0.09787812]
[1723726097520,0.084253,59342.0,59325.0,0.3608]
[1723726097521,0.084258,59338.0,59325.0,0.3608]
[1723726097718,0.8139,59338.0,59325.0,0.3608]
[1723726097909,0.084265,59333.0,59325.0,0.3608]
[1723726098109,0.8139,59338.0,59325.0,0.3608]
[1723726098110,0.084267,59332.0,59325.0,0.3608]
[1723726098411,0.3608,59334.0,59325.0,0.3608]
[1723726098612,0.3608,59334.0,59332.0,0.00025266]
[1723726098811,0.084265,59333.0,59332.0,0.00025266]
[1723726099220,0.32853,59333.0,59332.0,0.00025266]
[1723726099517,0.33853,59333.0,59332.0,0.00025266]
[1723726099719,0.33853,59333.0,59332.0,0.00017266]
[1723726100221,0.33853,59333.0,59317.0,0.3608]
[1723726100222,0.084272,59328.0,59327.0,0.01114225]
[1723726100428,0.505072,59328.0,59327.0,0.01114225]
[1723726100715,0.665072,59328.0,59327.0,0.01114225]
[1723726100924,0.665072,59328.0,59327.0,0.00014225]
[1723726101419,0.749344,59328.0,59327.0,0.00014225]
[1723726101617,1.48748,59328.0,59300.0,0.3608]
[1723726101816,1.48748,59328.0,59306.0,0.3608]
[1723726101817,0.3608,59317.0,59306.0,0.3608]
[1723726102017,0.3608,59324.0,59311.0,0.3608]
[1723726102215,0.084282,59322.0,59311.0,0.3608]
[1723726102408,0.084282,59322.0,59313.0,0.084293]
[1723726102713,0.3608,59324.0,59311.0,0.3608]
[1723726102714,0.445085,59319.0,59311.0,0.3608]
[1723726102918,0.3608,59319.0,59311.0,0.3608]
[1723726103110,0.084293,59314.0,59306.0,0.36105289]
[1723726103316,0.09286262,59318.0,59306.0,0.36105289]
[1723726103516,0.084287,59318.0,59306.0,0.36105289]
[1723726103823,0.084293,59314.0,59306.0,0.36105289]
[1723726104013,0.084287,59318.0,59308.0,0.084301]
[1723726104211,0.3608,59314.0,59306.0,0.36105289]
[1723726104416,0.3608,59314.0,59306.0,0.00225289]
[1723726104417,0.084302,59307.0,59306.0,0.00225289]
[1723726104924,0.084298,59311.0,59306.0,0.00225289]
[1723726105220,0.00012133,59313.0,59310.0,0.3608]
[1723726105421,0.002,59318.0,59317.0,0.084288]
[1723726105625,0.002,59318.0,59317.0,0.445088]
[1723726105828,0.002,59318.0,59317.0,0.86656]
[1723726106129,0.002,59318.0,59315.0,0.3608]
[1723726106130,0.086287,59318.0,59315.0,0.3608]
[1723726106317,0.084288,59317.0,59315.0,0.3608]
[1723726106913,0.08453489,59322.0,59315.0,0.3608]
[1723726107314,0.08453489,59322.0,59320.0,0.3608]
[1723726107514,0.084282,59321.0,59320.0,0.3608]
[1723726107717,0.3608,59341.0,59321.0,0.50572]
[1723726107916,0.3639,59339.0,59326.0,0.3608]
[1723726108135,0.3608,59336.0,59326.0,0.3608]
[1723726108426,0.084272,59329.0,59326.0,0.3608]
[1723726108623,0.5108,59336.0,59326.0,0.3608]
[1723726108624,0.084267,59332.0,59326.0,0.3608]
[1723726108820,0.3639,59339.0,59326.0,0.3608]
[1723726109016,0.5539,59339.0,59326.0,0.3608]
[1723726109230,0.08427,59330.0,59324.0,0.084278]
[1723726109528,0.084278,59324.0,59323.0,0.00025289]
[1723726109831,0.084278,59324.0,59309.0,0.084298]
[1723726109832,0.5308,59324.0,59309.0,0.084298]
[1723726110031,0.17,59324.0,59319.0,0.3608]
[1723726110233,0.2,59324.0,59319.0,0.3608]
[1723726110616,0.084284,59320.0,59319.0,0.3608]
[1723726110822,0.224284,59320.0,59319.0,0.3608]
[1723726111021,0.224284,59320.0,59305.0,0.09859215]
[1723726111022,0.16,59320.0,59305.0,0.3608]
[1723726111221,0.80899,59316.0,59314.0,0.00025289]
[1723726111427,0.084291,59315.0,59314.0,0.00025289]
[1723726111731,0.294291,59315.0,59314.0,0.00025289]
[1723726112325,0.294291,59315.0,59314.0,0.00013156]
[1723726112519,0.3639,59320.0,59314.0,0.00013156]
[1723726112520,0.084286,59319.0,59314.0,0.00013156]
[1723726112732,0.084291,59315.0,59314.0,0.00013156]